[Event "II Llinars Open 2022"]
[Site "Llinars del Valles"]
[Date "2022.07.03"]
[Round "9.2"]
[White "Jimenez Ruano, Adrian"]
[Black "Ayats Llobera, Gerard"]
[Result "0-1"]
[ECO "E14"]
[WhiteElo "2263"]
[BlackElo "2423"]
[Annotator "TA"]
[PlyCount "82"]
[EventDate "2022.06.24"]
[EventType "swiss"]
[EventCountry "ESP"]
[SourceTitle "playchess.com"]
[Source "ChessBase"]
[SourceQuality "1"]
[TimeControl "5400+30"]

{[%evp 9,82,0,2,0,0,-9,-6,-13,7,-8,-11,-21,0,0,0,0,0,-6,-6,-10,0,0,0,-11,-10,-20,-7,-24,-8,-32,-5,-9,0,0,0,-23,-14,-48,-30,-45,-41,-35,-33,-50,-50,-43,-44,-35,-10,-113,-109,-162,-118,-494,-404,-545,-541,-647,-647,-647,-647,-688,-688,-688,-688,-751,-736,-871,-781,-781,-781,-1056,-1040,-29991,-29992]} 1. d4 {[%emt 0:00:01]} Nf6 {[%emt 0:00:53]} 2. c4 {[%emt 0:00:07]} e6 {[%emt 0:00:02]} 3. Nf3 {[%emt 0:00:17]} b6 {[%emt 0:00:03]} 4. e3 {[%emt 0:07:32]} Bb7 {[%emt 0:00:12]} 5. Be2 {[%emt 0:00:11]} d5 {[%emt 0:00:57]} 6. Nbd2 {[%emt 0:02:23] E14: Queen's Indian: Classical Variation (4 e3).} Bd6 {[%emt 0:00:36]} 7. b3 {[%emt 0:04:36]} O-O {[%emt 0:00:09]} 8. Bb2 {[%emt 0:00:10] [#] The position is equal.} a5 $146 {[%emt 0:00:36]} ({Predecessor:} 8... Nbd7 9. O-O Ne4 10. Nxe4 dxe4 11. Ne5 Bxe5 12. dxe5 Qe7 13. f4 exf3 14. Bxf3 Bxf3 15. Qxf3 {½-½ (39) Grachev,B (2621)-Sakaev,K (2584) Yaroslavl 2019}) 9. a3 {[%emt 0:02:21]} Qe7 {[%emt 0:00:04]} 10. O-O {[%emt 0:02:14]} Na6 {[%emt 0:01:20]} 11. Qc2 {[%emt 0:08:09]} Rac8 {[%emt 0:00:50]} 12. Bd3 {[%emt 0:02:36]} c5 {[%emt 0:18:19]} 13. e4 {[%emt 0:01:26]} dxe4 {[%emt 0:13:33]} 14. Nxe4 {[%emt 0:00:30]} Bxe4 {[%emt 0:01:20]} (14... Nxe4 {is more complex.} 15. Bxe4 Bxe4 16. Qxe4 cxd4 17. Nxd4 Nc5) 15. Bxe4 {[%emt 0:00:06]} cxd4 {[%emt 0:10:24]} 16. Nxd4 {[%emt 0:00:41]} Nxe4 {[%emt 0:15:48]} 17. Qxe4 {[%emt 0:01:41]} Nc5 {[%emt 0:00:46]} 18. Qe3 {[%emt 0:10:02]} Qf6 {[%emt 0:01:58]} 19. Rab1 {[%emt 0:11:58]} Qg6 {[%emt 0:00:47]} 20. Nb5 {[%emt 0:07:27]} Be7 {[%emt 0:03:55]} 21. Bd4 {[%emt 0:07:56]} h6 {[%emt 0:01:09]} 22. Na7 {[%emt 0:04:22]} Rc7 {[%emt 0:00:22]} 23. Nb5 {[%emt 0:00:09]} Rd7 {[%emt 0:00:48]} 24. b4 {[%emt 0:01:15]} axb4 {[%emt 0:00:03]} 25. axb4 {[%emt 0:00:06]} Nd3 {[%emt 0:00:27][%cal Bc5d3,Bd3b4,Bb4d5][%mdl 32]} 26. Bxb6 {[%emt 0:03:43]} Nxb4 {[%emt 0:00:21]} 27. Rbd1 {[%emt 0:01:55]} Rxd1 {[%emt 0:04:45]} 28. Rxd1 {[%emt 0:00:02]} Rc8 {[%emt 0:00:01]} 29. c5 {[%emt 0:04:34]} (29. Qe2 $11 {remains equal.}) 29... Nd5 $40 {[%emt 0:00:21][%mdl 128] Black attacks with force.} 30. Qd4 {[%emt 0:01:38]} (30. Qd2 $17) 30... Qc2 {[%emt 0:03:40]} 31. Na3 $2 {[%emt 0:10:02][%mdl 8192] [#] Loses the game.} (31. Qa1 $17 {is more resistant.}) 31... Qe2 {[%emt 0:04:59]} 32. Nb1 {[%emt 0:05:03]} Nxb6 {[%emt 0:02:47]} 33. cxb6 {[%emt 0:00:22]} Rd8 {[%emt 0:00:46]} 34. Qxd8+ {[%emt 0:00:29]} Bxd8 {[%emt 0:00:04][%cal Re2d1]} 35. Nc3 {[%emt 0:00:01] [#]} Qe5 $1 {[%emt 0:05:29]} 36. Rxd8+ $19 {[%emt 0:00:08][%mdl 4096] Endgame KQ-KRN} Kh7 {[%emt 0:00:01][%cal Re5e1]} 37. g3 {[%emt 0:02:14]} Qxc3 {[%emt 0:00:07]} 38. Rb8 {[%emt 0:00:19]} Qc1+ {[%emt 0:00:12]} 39. Kg2 {[%emt 0:00:01]} Qc6+ {[%emt 0:00:05]} 40. f3 {[%emt 0:00:26]} Qc2+ {[%emt 0:01:32]} 41. Kh3 {[%emt 0:01:08]} Qf2 {[%emt 0:00:15] Weighted Error Value: White=0.79/Black=0.07 (flawless)} 0-1

[Event "II Llinars Open 2022"]
[Site "Llinars del Valles"]
[Date "2022.07.03"]
[Round "9.3"]
[White "Narciso Dublan, Marc"]
[Black "Segura Marsa, Andres"]
[Result "1-0"]
[ECO "B23"]
[WhiteElo "2464"]
[BlackElo "1862"]
[Annotator "TA"]
[PlyCount "45"]
[EventDate "2022.06.24"]
[EventType "swiss"]
[EventCountry "ESP"]
[SourceTitle "playchess.com"]
[Source "ChessBase"]
[SourceQuality "1"]
[TimeControl "5400+30"]

{[%evp 9,45,-5,-6,-9,0,0,1,0,0,-1,13,8,22,16,43,4,17,8,0,12,14,1,0,0,0,7,15,0,104,41,133,138,139,135,267,260,615,584]} 1. e4 {[%emt 0:00:14]} c5 {[%emt 0:00:24]} 2. Nc3 {[%emt 0:00:20]} g6 {[%emt 0:00:31]} 3. Bc4 {[%emt 0:01:02]} Nc6 {[%emt 0:01:01]} 4. d3 {[%emt 0:00:14]} Bg7 {[%emt 0:01:15]} 5. a3 {[%emt 0:00:31]} e6 {[%emt 0:02:58]} 6. Ba2 {[%emt 0:00:53] [#] B23: Closed Sicilian: Lines without g3.} Rb8 $146 {[%emt 0:03:59]} ({Predecessor:} 6... Nge7 7. h4 h5 8. Bg5 a6 9. Qd2 b5 10. Nf3 Bb7 11. O-O d6 12. Rae1 Qd7 {0-1 (32) Cornette,M (2583)-Bellahcene,B (2528) Cap d'Agde 2021}) 7. Nf3 {[%emt 0:06:29]} d6 {[%emt 0:05:32]} 8. O-O $1 {[%emt 0:01:26] The position is equal.} Nge7 {[%emt 0:00:51]} 9. Ne2 {[%emt 0:05:44]} O-O {[%emt 0:03:56]} 10. c3 {[%emt 0:01:15]} b5 {[%emt 0:06:05]} 11. Bg5 {[%emt 0:10:04]} Qd7 {[%emt 0:10:03][%cal Oc5c4]} 12. d4 {[%emt 0:08:16]} cxd4 {[%emt 0:07:06]} 13. cxd4 {[%emt 0:00:51]} b4 {[%emt 0:05:49]} 14. Qd2 {[%emt 0:19:51]} Ba6 {[%emt 0:04:17]} 15. Rfe1 {[%emt 0:00:11][%cal Bf1e1,Be1e2,Be2e4][%mdl 32]} Bxe2 {[%emt 0:01:44]} 16. Rxe2 {[%emt 0:01:07]} bxa3 {[%emt 0:01:07]} 17. bxa3 {[%emt 0:00:15]} Rfc8 {[%emt 0:00:58]} 18. Rd1 {[%emt 0:05:57]} Rc7 {[%emt 0:08:37]} (18... d5 $11) 19. h4 {[%emt 0:02:07]} ({White should play} 19. d5 $16 Nd8 20. Bxe7 Qxe7 21. e5) 19... d5 {[%emt 0:03:31]} (19... Nd8 $14) 20. Bf4 $16 {[%emt 0:03:44]} dxe4 {[%emt 0:03:52]} 21. Rxe4 {[%emt 0:00:15]} e5 {[%emt 0:02:08]} (21... Rd8 $16 {is a better defense.}) 22. dxe5 $18 {[%emt 0:01:10][%cal Bd4e5,Be5e6][%mdl 32]} Qf5 {[%emt 0:05:45] [#]} (22... Qxd2 23. Rxd2 Rcb7) 23. e6 $1 {[%emt 0:07:41] Weighted Error Value: White=0.08 (flawless) /Black=0.44} 1-0

[Event "II Llinars Open 2022"]
[Site "Llinars del Valles"]
[Date "2022.07.03"]
[Round "9.4"]
[White "Valenzuela Gomez, Fernando"]
[Black "Uber Gracia, Hugo"]
[Result "1-0"]
[ECO "B12"]
[WhiteElo "2373"]
[BlackElo "1915"]
[Annotator "TA"]
[PlyCount "61"]
[EventDate "2022.06.24"]
[EventType "swiss"]
[EventCountry "ESP"]
[SourceTitle "playchess.com"]
[Source "ChessBase"]
[SourceQuality "1"]
[TimeControl "5400+30"]

{[%evp 10,61,15,25,28,22,24,17,26,19,35,44,35,39,35,36,45,31,38,38,23,42,44,10,56,65,123,122,108,113,300,89,98,87,350,322,569,545,1145,273,1014,1004,952,632,882,0,771,772,761,764,1252,1245,3010,619]} 1. e4 {[%emt 0:00:03]} c6 {[%emt 0:00:30]} 2. d4 {[%emt 0:00:05]} d5 {[%emt 0:00:18]} 3. e5 {[%emt 0:00:05]} Bf5 {[%emt 0:00:31]} 4. Nd2 {[%emt 0:00:07]} e6 {[%emt 0:00:50]} 5. Nb3 {[%emt 0:00:02]} Nd7 {[%emt 0:03:07]} 6. Nf3 {[%emt 0:00:10]} Ne7 {[%emt 0:02:12] B12: Caro-Kann: Advance Variation.} 7. Be2 {[%emt 0:01:14]} Bg6 {[%emt 0:02:12]} 8. O-O {[%emt 0:00:03]} Nf5 {[%emt 0:01:42] The position is equal.} 9. Bd2 {[%emt 0:00:01]} Be7 {[%emt 0:01:10]} 10. g4 {[%emt 0:02:39]} Nh4 {[%emt 0:04:46]} 11. Nxh4 {[%emt 0:00:03]} Bxh4 {[%emt 0:00:27]} 12. f4 {[%emt 0:00:02] And now f5 would win.} Be4 {[%emt 0:01:44]} 13. Bf3 {[%emt 0:02:35] Bxe4 is the strong threat.} Bxf3 {[%emt 0:06:04]} 14. Qxf3 {[%emt 0:00:17]} Be7 {[%emt 0:01:45]} 15. f5 {[%emt 0:00:32]} O-O {[%emt 0:02:17]} 16. Kh1 {[%emt 0:22:30] [#]} Bg5 $146 {[%emt 0:09:30]} (16... a5 $11) ({Predecessor:} 16... a5 17. a4 c5 18. g5 exf5 19. Qxf5 Ra6 20. Bxa5 Qc8 21. Bc3 cxd4 22. Nxd4 g6 {½-½ (43) Lindh,S (2520)-Trumpf,W (2406) ICCF email 2009}) 17. Bb4 $14 {[%emt 0:00:34]} Be7 {[%emt 0:07:16]} (17... Re8 $1 $14) 18. Bxe7 $1 $16 {[%emt 0:00:10] White is much more active. The black rooks are badly placed.} Qxe7 {[%emt 0:00:21]} 19. f6 $1 $36 {[%emt 0:00:05][%mdl 2048] Keeping Black busy.} Qd8 {[%emt 0:01:37]} (19... gxf6 $16 20. exf6 Qe8) 20. fxg7 $2 {[%emt 0:03:47]} (20. g5 $1 $18) 20... Kxg7 {[%emt 0:01:33] [#]} 21. g5 $1 {[%emt 0:00:03]} Qe7 $2 {[%emt 0:06:30][%mdl 8192]} (21... Kh8 $16) 22. Qh5 $18 {[%emt 0:01:27]} Rh8 $2 {[%emt 0:04:27] [#]} (22... c5 {keeps fighting.} 23. Rf3 (23. Nxc5 Nxc5 24. dxc5 Qxc5 $11) 23... cxd4 24. Qh6+ (24. Nxd4 Rh8 $18) 24... Kh8) 23. Rf6 $1 {[%emt 0:03:37][%mdl 512] Strongly threatening Raf1.} Kf8 {[%emt 0:03:41] [#]} (23... Nf8 24. Raf1) 24. Rf4 $2 {[%emt 0:03:12]} (24. Nc5 $1) 24... Kg7 $2 {[%emt 0:02:03]} (24... Rg8 25. Rg1 (25. Qxh7 f5 $16) 25... c5 26. Qh6+ Ke8 27. Qxh7 Rf8) 25. Raf1 {[%emt 0:00:21][%cal Rf4f7]} Raf8 {[%emt 0:00:47]} 26. Qh6+ {[%emt 0:03:30]} Kg8 {[%emt 0:00:11]} 27. Qh5 {[%emt 0:06:31]} Kg7 $1 {[%emt 0:00:30]} 28. Nc1 {[%emt 0:01:01] White is clearly winning.} c5 {[%emt 0:01:08]} 29. c3 {[%emt 0:02:31]} b5 {[%emt 0:01:23]} 30. Ne2 {[%emt 0:00:26] Threatens to win with Qh6+.} b4 {[%emt 0:00:41]} 31. Ng3 {[%emt 0:00:06] Weighted Error Value: White=0.66/Black=0.77} (31. Qh6+ $142 Kg8 32. cxb4) 1-0

[Event "II Llinars Open 2022"]
[Site "Llinars del Valles"]
[Date "2022.07.03"]
[Round "9.5"]
[White "Parra Ordorica, Gorka"]
[Black "Prats Safont, Sergi"]
[Result "1/2-1/2"]
[ECO "E15"]
[WhiteElo "1777"]
[BlackElo "2206"]
[Annotator "RC"]
[PlyCount "152"]
[EventDate "2022.06.24"]
[EventType "swiss"]
[EventCountry "ESP"]
[SourceTitle "playchess.com"]
[Source "ChessBase"]
[SourceQuality "1"]
[TimeControl "5400+30"]

1. d4 {[%emt 0:00:14]} Nf6 {[%emt 0:00:28]} 2. c4 {[%emt 0:00:16]} b6 {[%emt 0:03:13]} 3. Nf3 {[%emt 0:02:09]} e6 {[%emt 0:01:09]} 4. g3 {[%emt 0:02:34]} Ba6 {[%emt 0:00:06]} 5. Qc2 {[%emt 0:03:26]} Bb7 {[%emt 0:00:23]} 6. Bg2 {[%emt 0:01:16]} c5 {[%emt 0:00:20]} 7. O-O {[%emt 0:01:56]} cxd4 {[%emt 0:00:32]} 8. Rd1 {[%emt 0:00:29]} Qc8 {[%emt 0:08:35]} 9. Nxd4 {[%emt 0:06:36]} Bxg2 {[%emt 0:00:20]} 10. Kxg2 {[%emt 0:00:05]} Be7 {[%emt 0:01:57]} 11. Bf4 {[%emt 0:08:21]} a6 {[%emt 0:02:51]} 12. e4 {[%emt 0:07:18]} Qb7 {[%emt 0:11:29]} 13. Nc3 {[%emt 0:00:57]} O-O {[%emt 0:00:48]} 14. Nf3 {[%emt 0:02:19]} Qc6 {[%emt 0:27:26]} 15. Qe2 {[%emt 0:18:26]} d6 {[%emt 0:02:35]} 16. Rd2 {[%emt 0:02:31]} Ra7 {[%emt 0:05:02]} 17. Rad1 {[%emt 0:03:54]} Rd7 {[%emt 0:00:18]} 18. Kg1 {[%emt 0:01:10]} e5 {[%emt 0:07:48]} 19. Bxe5 {[%emt 0:05:58]} dxe5 {[%emt 0:01:01]} 20. Nxe5 {[%emt 0:00:06]} Qc7 {[%emt 0:02:44]} 21. Nxd7 {[%emt 0:00:17]} Nbxd7 {[%emt 0:00:26]} 22. Nd5 {[%emt 0:04:29]} Nxd5 {[%emt 0:02:39]} 23. cxd5 {[%emt 0:00:55]} Qb7 {[%emt 0:00:15]} 24. e5 {[%emt 0:01:29]} Bc5 {[%emt 0:00:15]} 25. Kf1 {[%emt 0:02:13]} Re8 {[%emt 0:00:40]} 26. f4 {[%emt 0:00:24]} Nf8 {[%emt 0:00:44]} 27. a3 {[%emt 0:00:44]} a5 {[%emt 0:00:34]} 28. Qb5 {[%emt 0:02:23]} Qc8 {[%emt 0:00:43]} 29. Kg2 {[%emt 0:00:55]} Rd8 {[%emt 0:00:23]} 30. b4 {[%emt 0:01:05]} axb4 {[%emt 0:00:10]} 31. axb4 {[%emt 0:00:06]} Be3 {[%emt 0:01:16]} 32. Re2 {[%emt 0:01:32]} Bc1 {[%emt 0:01:36]} 33. Qc6 {[%emt 0:05:28]} Qg4 {[%emt 0:01:26]} 34. Kf2 {[%emt 0:02:41]} Rc8 {[%emt 0:00:53]} 35. e6 {[%emt 0:09:57]} Rxc6 {[%emt 0:02:03]} 36. dxc6 {[%emt 0:00:08]} fxe6 {[%emt 0:12:58]} 37. c7 {[%emt 0:00:11]} e5 {[%emt 0:00:13]} 38. Rd8 {[%emt 0:00:41]} exf4 {[%emt 0:01:55]} 39. c8=Q {[%emt 0:00:20]} Be3+ {[%emt 0:00:11]} 40. Ke1 {[%emt 0:00:55]} Qxc8 {[%emt 0:00:38]} 41. Rxc8 {[%emt 0:00:06]} Kf7 {[%emt 0:00:46]} 42. gxf4 {[%emt 0:01:42]} Bxf4 {[%emt 0:00:07]} 43. Rf2 {[%emt 0:00:14]} g5 {[%emt 0:00:21]} 44. Rc7+ {[%emt 0:00:45]} Ke6 {[%emt 0:00:19]} 45. Rc6+ {[%emt 0:00:31]} Kd5 {[%emt 0:00:07]} 46. b5 {[%emt 0:02:34]} Nd7 {[%emt 0:00:16]} 47. Rfc2 {[%emt 0:00:37]} h5 {[%emt 0:00:36]} 48. R2c3 {[%emt 0:00:32]} Ke4 {[%emt 0:01:35]} 49. h3 {[%emt 0:00:24]} g4 {[%emt 0:00:18]} 50. hxg4 {[%emt 0:00:37]} hxg4 {[%emt 0:00:02]} 51. Kf2 {[%emt 0:00:23]} Be5 {[%emt 0:01:05]} 52. Rc2 {[%emt 0:00:36]} Bd4+ {[%emt 0:00:56]} 53. Kg3 {[%emt 0:00:19]} Ne5 {[%emt 0:00:23]} 54. Rc8 {[%emt 0:00:41]} Kd5 {[%emt 0:00:56]} 55. Rd2 {[%emt 0:00:29]} Ke4 {[%emt 0:00:13]} 56. Rb8 {[%emt 0:00:31]} Nc4 {[%emt 0:00:34]} 57. Re8+ {[%emt 0:00:16]} Be5+ {[%emt 0:00:46]} 58. Rxe5+ {[%emt 0:00:41]} Nxe5 {[%emt 0:00:31]} 59. Rd6 {[%emt 0:00:33]} Nc4 {[%emt 0:00:06]} 60. Rd8 {[%emt 0:00:28]} Ne5 {[%emt 0:00:37]} 61. Rb8 {[%emt 0:00:22]} Nc4 {[%emt 0:00:11]} 62. Kxg4 {[%emt 0:00:08]} Kd5 {[%emt 0:00:05]} 63. Rc8 {[%emt 0:00:52]} Nd6 {[%emt 0:00:09]} 64. Rc6 {[%emt 0:00:23]} Nxb5 {[%emt 0:00:11]} 65. Rxb6 {[%emt 0:00:08]} Nd4 {[%emt 0:00:22]} 66. Ra6 {[%emt 0:00:26]} Ke5 {[%emt 0:00:11]} 67. Ra5+ {[%emt 0:00:16]} Ke4 {[%emt 0:00:06]} 68. Kg5 {[%emt 0:00:24]} Nc6 {[%emt 0:00:40]} 69. Rc5 {[%emt 0:00:21]} Ne5 {[%emt 0:00:10]} 70. Ra5 {[%emt 0:00:32]} Nc6 {[%emt 0:00:10]} 71. Ra8 {[%emt 0:00:12]} Nd4 {[%emt 0:00:48]} 72. Kf6 {[%emt 0:00:15]} Kd5 {[%emt 0:00:17]} 73. Ra5+ {[%emt 0:00:37]} Ke4 {[%emt 0:00:06]} 74. Re5+ {[%emt 0:00:22]} Kd3 {[%emt 0:00:17]} 75. Re1 {[%emt 0:00:23]} Kc4 {[%emt 0:00:10]} 76. Ke5 {[%emt 0:00:10]} Nf3+ {[%emt 0:00:01]} 1/2-1/2

[Event "II Llinars Open 2022"]
[Site "Llinars del Valles"]
[Date "2022.07.03"]
[Round "9.6"]
[White "Juncosa Padros, Ernest"]
[Black "Fanninger, Leon"]
[Result "0-1"]
[ECO "A21"]
[WhiteElo "1877"]
[BlackElo "2157"]
[Annotator "RC"]
[PlyCount "108"]
[EventDate "2022.06.24"]
[EventType "swiss"]
[EventCountry "ESP"]
[SourceTitle "playchess.com"]
[Source "ChessBase"]
[SourceQuality "1"]
[TimeControl "5400+30"]

1. d4 {[%emt 0:00:02]} d6 {[%emt 0:06:35]} 2. c4 {[%emt 0:00:21]} e5 {[%emt 0:04:28]} 3. Nc3 {[%emt 0:00:30]} exd4 {[%emt 0:00:33]} 4. Qxd4 {[%emt 0:00:06]} Nc6 {[%emt 0:02:23]} 5. Qd2 {[%emt 0:00:28]} Nf6 {[%emt 0:00:15]} 6. b3 {[%emt 0:01:01]} g6 {[%emt 0:01:09]} 7. Bb2 {[%emt 0:00:10]} Bg7 {[%emt 0:00:06]} 8. Nf3 {[%emt 0:01:35]} O-O {[%emt 0:00:40]} 9. g3 {[%emt 0:00:13]} a5 {[%emt 0:13:19]} 10. Bg2 {[%emt 0:02:03]} Nd7 {[%emt 0:07:57]} 11. Na4 {[%emt 0:07:38]} Nde5 {[%emt 0:03:01]} 12. Nd4 {[%emt 0:16:15]} Bd7 {[%emt 0:05:16]} 13. Nxc6 {[%emt 0:10:45]} Bxc6 {[%emt 0:01:14]} 14. Bxc6 {[%emt 0:00:18]} bxc6 {[%emt 0:02:34]} 15. O-O-O {[%emt 0:11:37]} Nd7 {[%emt 0:12:12]} 16. Bxg7 {[%emt 0:04:05]} Kxg7 {[%emt 0:00:02]} 17. e4 {[%emt 0:03:18]} Qf6 {[%emt 0:01:57]} 18. Qd4 {[%emt 0:04:44]} Qxd4 {[%emt 0:15:30]} 19. Rxd4 {[%emt 0:00:01]} Rae8 {[%emt 0:00:15]} 20. f3 {[%emt 0:07:03]} f5 {[%emt 0:00:27]} 21. exf5 {[%emt 0:00:15]} Rxf5 {[%emt 0:01:11]} 22. f4 {[%emt 0:02:32]} Rf6 {[%emt 0:02:43]} 23. Rhd1 {[%emt 0:01:16]} Rfe6 {[%emt 0:00:27]} 24. Kc2 {[%emt 0:01:27]} Nf6 {[%emt 0:00:33]} 25. Nc3 {[%emt 0:01:14]} Ng4 {[%emt 0:01:01]} 26. R1d2 {[%emt 0:01:49]} Ne3+ {[%emt 0:02:56]} 27. Kd3 {[%emt 0:06:33]} Nf1 {[%emt 0:10:43]} 28. Rf2 {[%emt 0:00:01]} Re3+ {[%emt 0:00:02]} 29. Kc2 {[%emt 0:00:12]} Re1 {[%emt 0:00:11]} 30. Rd3 {[%emt 0:10:31]} Ne3+ {[%emt 0:00:27]} 31. Kd2 {[%emt 0:01:57]} Nf1+ {[%emt 0:01:33]} 32. Kc2 {[%emt 0:00:05]} Kf6 {[%emt 0:01:15]} 33. h3 {[%emt 0:01:13]} Ne3+ {[%emt 0:00:24]} 34. Kd2 {[%emt 0:00:09]} Nf5 {[%emt 0:01:24]} 35. Re2 {[%emt 0:02:59]} R1xe2+ {[%emt 0:00:21]} 36. Nxe2 {[%emt 0:00:02]} h5 {[%emt 0:02:50]} 37. Nd4 {[%emt 0:00:59]} Nxd4 {[%emt 0:00:08]} 38. Rxd4 {[%emt 0:00:02]} Kf5 {[%emt 0:00:35]} 39. a3 {[%emt 0:03:57]} Re4 {[%emt 0:00:34]} 40. Rd3 {[%emt 0:00:02]} h4 {[%emt 0:00:27]} 41. Rf3 {[%emt 0:00:45]} hxg3 {[%emt 0:00:08]} 42. Rxg3 {[%emt 0:00:01]} Rxf4 {[%emt 0:00:04]} 43. Kd3 {[%emt 0:01:14]} c5 {[%emt 0:01:04]} 44. Re3 {[%emt 0:00:23]} Rh4 {[%emt 0:00:42]} 45. Ke2 {[%emt 0:00:29]} Re4 {[%emt 0:00:45]} 46. Kf3 {[%emt 0:00:31]} Rxe3+ {[%emt 0:00:02]} 47. Kxe3 {[%emt 0:00:08]} Kg5 {[%emt 0:00:23]} 48. Kf3 {[%emt 0:00:06]} Kh4 {[%emt 0:00:03]} 49. Kf4 {[%emt 0:00:32]} Kxh3 {[%emt 0:01:01]} 50. Kg5 {[%emt 0:00:02]} Kg3 {[%emt 0:00:44]} 51. Kxg6 {[%emt 0:00:08]} Kf4 {[%emt 0:00:03]} 52. Kf6 {[%emt 0:00:16]} Ke4 {[%emt 0:00:17]} 53. Ke6 {[%emt 0:00:02]} Kd4 {[%emt 0:00:13]} 54. Kd7 {[%emt 0:00:07]} Kc3 {[%emt 0:00:12]} 0-1